bitfinex/quotes_ETHUSD_20250814
["timestamp","ask_amount","ask_price","bid_price","bid_amount"]
[1755173151425,1.075,4730.0,4729.9,3.278]
[1755173151637,1.075,4730.0,4728.7,2.66473901]
[1755173151803,1.075,4730.0,4729.0,2.66457383]
[1755173152126,1.075,4730.0,4729.2,3.55]
[1755173152427,1.075,4730.0,4729.9,0.1056]
[1755173152428,0.4541,4730.0,4729.9,0.1056]
[1755173152627,0.4534,4730.5,4729.9,3.3836]
[1755173152794,0.19625839,4730.4,4729.9,3.3836]
[1755173152995,0.19625759,4730.3,4729.9,3.278]
[1755173153208,0.19625759,4730.2,4729.9,3.278]
[1755173153403,0.4534,4730.5,4730.2,0.1056]
[1755173153720,0.19634477,4730.4,4730.2,0.1056]
[1755173153908,0.19634477,4730.3,4730.2,0.1056]
[1755173158930,0.64974477,4730.3,4730.2,0.1056]
[1755173160090,0.19634477,4730.3,4730.2,0.1056]
[1755173160653,0.19634477,4730.3,4730.2,5.1736]
[1755173163618,0.19634477,4730.3,4730.2,8.4436]
[1755173163942,0.65018128,4730.3,4730.2,8.4444]
[1755173164105,0.19598128,4730.3,4730.2,8.4444]
[1755173167652,0.64938128,4730.3,4730.2,8.4444]
[1755173168618,0.19598128,4730.3,4730.2,8.4444]
[1755173169213,0.19598128,4730.3,4730.2,5.1744]
[1755173169214,1.50548128,4730.3,4730.2,5.1744]
[1755173169420,1.50548128,4730.3,4730.2,8.4404]
[1755173169722,1.50548128,4730.3,4730.2,5.1744]
[1755173169925,1.50548128,4730.3,4730.2,8.4404]
[1755173170927,1.50548128,4730.3,4730.2,5.1744]
[1755173171126,1.3095,4730.3,4730.2,8.4394]
[1755173171970,1.3095,4730.3,4730.2,5.1744]
[1755173172275,1.45325,4730.3,4730.2,5.1744]
[1755173172561,1.45325,4730.3,4730.2,8.4384]
[1755173174180,1.3095,4730.3,4730.2,8.4384]
[1755173175066,1.3095,4730.3,4730.2,8.4364]
[1755173175376,1.3095,4730.3,4730.2,5.1744]
[1755173175561,1.3095,4730.3,4730.2,8.4364]
[1755173177966,1.3095,4730.3,4730.2,8.4384]
[1755173178165,1.45325,4730.3,4730.2,8.4384]
[1755173178553,1.45325,4730.3,4730.2,8.3328]
[1755173178796,1.45325,4730.3,4730.2,8.3338]
[1755173179990,6.56728082,4730.3,4730.2,8.3338]
[1755173180195,6.56728082,4730.3,4730.2,5.0688]
[1755173180500,6.56728082,4730.3,4730.2,3.2648]
[1755173181414,7.11728082,4730.3,4730.2,3.2648]
[1755173182319,4.45325,4730.3,4730.2,3.2648]
[1755173183012,1.45325,4730.3,4730.2,3.2648]
[1755173183186,1.3095,4730.3,4730.2,3.2648]
[1755173183607,0.4534,4730.3,4730.2,3.3704]
[1755173183808,0.126,4730.4,4730.2,3.2648]
[1755173184022,0.5691,4730.4,4730.2,3.3704]
[1755173184233,0.4431,4730.3,4730.2,3.3704]
[1755173184437,0.126,4730.4,4730.2,3.3704]
[1755173185006,0.5691,4730.4,4730.2,3.3704]
[1755173185207,0.4431,4730.3,4730.2,3.3704]
[1755173186509,0.4431,4730.3,4730.2,8.4394]
[1755173186709,0.126,4730.4,4730.2,8.4394]
[1755173189259,0.5691,4730.4,4730.2,8.4394]
[1755173189463,0.126,4730.4,4730.2,8.4394]
[1755173189812,0.126,4730.4,4730.2,8.3338]
[1755173190010,0.126,4730.4,4730.3,0.682]
[1755173190515,0.126,4730.4,4730.3,2.79783082]
[1755173191048,0.126,4730.4,4730.3,0.6828]
[1755173191245,0.126,4730.4,4730.3,2.79683082]
[1755173191608,0.126,4730.4,4730.3,3.3734]
[1755173192644,0.126,4730.4,4730.3,3.9498]
[1755173193045,0.126,4730.4,4730.3,6.06383082]
[1755173193346,0.126,4730.4,4730.3,4.4998]
[1755173193550,2.4592,4731.5,4730.3,9.03743082]
[1755173193713,2.4592,4731.5,4731.4,2.66353933]
[1755173193909,1.8828,4731.5,4731.4,5.93853933]
[1755173194114,1.8828,4731.5,4731.4,5.38853933]
[1755173195042,1.8828,4731.5,4731.4,2.11453933]
[1755173195213,1.8828,4731.5,4731.4,5.38853933]
[1755173195921,1.8828,4731.5,4731.4,3.273]
[1755173196330,1.8828,4731.5,4731.4,3.272]
[1755173196826,1.8828,4731.5,4731.4,3.273]
[1755173197027,2.31708,4731.5,4730.3,0.0008]
[1755173197228,2.31708,4731.5,4729.7,0.001]
[1755173197229,4.334,4731.4,4729.7,0.001]
[1755173197418,6.43512725,4731.3,4729.7,0.001]
[1755173197645,1.334,4731.2,4729.9,3.282]
[1755173198161,1.334,4731.1,4729.9,3.282]
[1755173198454,1.334,4731.0,4729.9,3.282]
[1755173198623,1.334,4730.9,4729.9,3.282]
[1755173198822,3.43512725,4730.8,4729.7,0.001]
[1755173199049,3.0,4730.0,4728.8,0.001]
[1755173199263,28.05496595,4728.7,4728.3,0.001]
[1755173199573,1.334,4728.6,4728.4,3.303]
[1755173200053,1.334,4728.5,4728.4,3.303]
[1755173202118,1.334,4728.5,4728.4,3.3038]
[1755173202833,28.05496595,4729.3,4728.4,3.3038]
[1755173202834,1.334,4729.0,4728.4,3.3038]
[1755173203155,2.10112725,4730.8,4728.4,3.3038]
[1755173203156,0.4431,4729.4,4728.4,3.3038]
[1755173203369,0.1334,4729.3,4728.4,3.3038]
[1755173204264,0.1334,4729.3,4729.2,0.1056]
[1755173204566,1.4674,4729.3,4729.2,3.4066]
[1755173206922,29.52236595,4729.3,4729.2,3.4066]
[1755173208444,1.4674,4729.3,4729.2,3.4066]
[1755173212161,0.1056,4729.9,4729.2,8.4756]
[1755173212477,2.10112725,4730.8,4729.8,0.1056]
[1755173212681,0.002,4730.9,4730.7,0.1056]
[1755173212830,0.002,4730.9,4730.8,3.293]
[1755173213467,1.357,4730.9,4730.8,3.293]
[1755173214364,29.41196595,4730.9,4730.7,0.1056]
[1755173214678,31.16256595,4730.9,4730.8,3.293]
[1755173214958,31.16256595,4730.9,4730.6,3.292]
[1755173214959,5.11385157,4730.8,4730.6,3.292]
[1755173215160,6.02975157,4730.8,4730.6,3.292]
[1755173215473,4.355,4730.7,4730.6,3.292]
[1755173219049,30.2636932,4730.9,4730.6,3.292]
[1755173219050,2.10312725,4730.9,4730.6,3.292]
[1755173219368,0.002,4730.9,4730.6,3.3976]
[1755173220751,0.4391,4730.8,4730.6,3.3976]
[1755173221059,0.002,4730.9,4730.6,3.3976]
[1755173222561,0.002,4730.9,4730.6,3.3984]
[1755173226217,0.002,4730.9,4730.7,3.283]
[1755173226361,0.4391,4730.8,4730.7,3.283]
[1755173226561,1.355,4730.8,4730.7,3.283]
[1755173226958,1.4907,4730.8,4730.7,3.283]
[1755173231558,0.5748,4730.8,4730.7,3.283]
[1755173231868,0.002,4730.9,4730.7,3.3886]
[1755173232052,0.4411,4730.9,4730.7,3.3886]
[1755173232254,1.355,4730.8,4730.7,0.1056]
[1755173232471,4.3542,4730.8,4730.7,3.282]
[1755173232671,6.45532725,4730.8,4730.7,3.282]
[1755173232887,6.45532725,4730.8,4730.7,3.2828]
[1755173233512,6.56092725,4730.8,4730.7,3.2828]
[1755173235279,6.45532725,4730.8,4730.7,3.2828]
[1755173235611,1.355,4730.8,4730.7,3.2828]
[1755173236797,1.355,4730.8,4730.7,3.3884]
[1755173237003,0.55,4730.7,4728.3,0.001]
[1755173237209,0.1056,4729.2,4728.6,0.1056]
[1755173237391,2.54022725,4729.1,4728.7,3.325]
[1755173237592,2.10112725,4729.1,4729.0,0.1056]
[1755173237779,0.4391,4729.4,4729.0,0.1056]
[1755173237991,1.355,4729.3,4729.0,0.1056]
[1755173238174,0.9159,4729.2,4729.0,0.1056]
[1755173238375,0.4391,4729.1,4729.0,0.1056]
[1755173238987,3.739528,4729.6,4729.0,0.1056]
[1755173239192,1.8644528,4729.5,4729.0,0.1056]
[1755173239393,1.355,4729.4,4729.0,0.1056]
[1755173239604,1.355,4729.3,4729.0,0.1056]
[1755173239808,1.355,4729.2,4729.0,0.1056]
[1755173240124,1.355,4729.2,4728.7,3.325]
[1755173240125,4.355,4729.1,4728.7,3.325]
[1755173240329,3.0,4728.9,4728.7,3.325]
[1755173240715,1.355,4728.8,4728.7,3.325]
[1755173240913,1.45214468,4728.8,4728.7,3.325]
[1755173241428,1.45214468,4728.8,4728.3,0.001]
[1755173241719,31.16056595,4728.4,4728.3,0.001]
[1755173241925,3.0,4728.3,4727.7,5.068]
[1755173242123,3.4534,4728.3,4727.7,5.068]
[1755173242325,0.4534,4728.2,4727.7,5.068]
[1755173242623,3.0,4728.1,4727.8,3.324]
[1755173242917,3.0,4728.1,4726.8,0.001]
[1755173242918,0.1056,4727.9,4727.0,0.1056]
[1755173243121,0.1056,4727.9,4727.1,3.324]
[1755173243122,28.05496595,4727.5,4727.1,3.324]
[1755173243324,32.46886595,4727.5,4727.1,3.324]
[1755173245716,33.10310495,4727.5,4727.1,3.324]
[1755173248513,5.048139,4727.5,4727.1,3.324]
[1755173248713,3.739839,4727.5,4727.1,3.324]
[1755173249306,5.61824176,4727.5,4727.1,3.324]
[1755173249502,4.76334176,4727.5,4727.1,3.324]
[1755173249897,5.61824176,4727.5,4727.1,3.324]
[1755173252205,33.67320771,4727.5,4727.4,0.0018]
[1755173254838,33.67240771,4727.5,4727.4,0.0018]
[1755173255134,32.36410771,4727.5,4727.4,0.0018]
[1755173255436,4.30914176,4727.5,4727.4,0.0018]
[1755173255599,0.8549,4728.3,4727.4,0.0018]
[1755173255801,0.1056,4728.0,4727.4,0.1074]
[1755173256030,0.739743,4728.0,4727.4,0.1074]
[1755173256602,1.15466002,4728.0,4727.4,0.1074]
[1755173257710,1.3083,4727.9,4727.4,0.0018]
[1755173257911,0.1056,4727.7,4727.4,0.0018]
[1755173258345,0.4534,4727.6,4727.4,0.0018]
[1755173258646,0.9605,4727.7,4727.4,0.0018]
[1755173259254,0.8549,4727.7,4727.4,0.0018]
[1755173259461,1.3083,4727.6,4727.4,0.0018]
[1755173259616,0.8549,4727.5,4727.4,0.0018]
[1755173259816,1.3083,4727.5,4727.4,0.0018]
[1755173260740,0.190396,4727.7,4727.4,0.0018]
[1755173261250,1.3083,4727.6,4727.4,0.0018]
[1755173261623,2.32291598,4727.6,4727.4,0.0018]
[1755173263227,0.4534,4727.5,4727.4,0.0018]
[1755173263435,1.3083,4727.5,4727.4,0.0018]
[1755173263627,1.3083,4727.5,4727.4,3.3078]
[1755173263937,1.4139,4727.5,4727.4,3.3078]
[1755173264138,6.51502725,4727.5,4727.4,3.3078]
[1755173264352,3.0,4727.5,4727.4,3.3078]
[1755173265860,0.8549,4728.0,4727.4,3.3078]
[1755173266046,0.002,4729.3,4727.4,3.3078]
[1755173266047,0.63417,4727.8,4727.6,0.1056]
[1755173266244,0.63417,4727.8,4727.7,0.07935193]
[1755173266460,0.1056,4728.3,4727.7,0.0582]
[1755173266776,0.002,4729.3,4727.8,0.0582]
[1755173266939,0.002,4729.3,4728.2,0.1056]
[1755173267135,0.002,4729.3,4729.0,0.1056]
[1755173267747,1.3083,4729.2,4729.0,0.1056]
[1755173267953,0.4534,4729.2,4729.0,0.1056]
[1755173268148,0.14159,4729.2,4729.0,0.1056]
[1755173268351,0.4534,4729.1,4728.6,0.1056]
[1755173270785,0.4534,4729.0,4728.6,0.1056]
[1755173271838,0.14159,4729.2,4728.6,0.1056]
[1755173275576,0.26711481,4729.3,4728.6,0.1056]
[1755173276437,0.26711481,4729.3,4728.6,0.1064]
[1755173276680,1.58071481,4729.3,4728.6,0.1064]
[1755173277170,0.4748,4729.2,4728.6,0.1064]
[1755173278374,0.8388,4729.1,4728.7,3.299]
[1755173278574,0.4748,4729.0,4728.7,3.299]
[1755173279079,1.3136,4728.9,4728.7,3.299]
[1755173279238,0.26711481,4729.3,4728.7,3.299]
[1755173279441,1.3136,4728.8,4728.7,3.299]
[1755173279642,1.3128,4728.8,4728.7,3.299]
[1755173280264,0.8388,4729.2,4728.7,3.299]
[1755173280656,0.26711481,4729.3,4728.7,3.299]
[1755173282286,0.26711481,4729.3,4728.7,3.2998]
[1755173283083,0.4748,4729.2,4728.7,3.2998]
[1755173283391,1.3136,4729.1,4728.7,3.2998]
[1755173283579,0.26711481,4729.3,4728.7,3.2998]
[1755173283781,0.4748,4729.0,4728.7,3.2998]
[1755173283983,1.3136,4728.9,4728.7,3.2998]
[1755173284181,0.26711481,4729.3,4728.7,3.2998]
[1755173284393,1.3136,4728.8,4728.7,3.2998]
[1755173285755,1.74496,4728.8,4728.7,0.0008]
[1755173285961,1.74496,4728.8,4728.7,3.2918]
[1755173286400,1.74496,4728.8,4728.7,3.2908]
[1755173287003,1.74496,4728.8,4728.7,0.0008]
[1755173287201,1.74496,4728.8,4728.7,3.2908]
[1755173287620,1.74496,4728.8,4728.3,5.072]
[1755173287806,1.74496,4728.8,4728.7,3.29]
[1755173287807,0.43136,4728.8,4728.7,3.29]
[1755173287973,1.74496,4728.8,4728.7,3.29]
[1755173288176,1.85056,4728.8,4728.7,3.29]
[1755173288478,0.1056,4728.8,4728.7,3.29]
[1755173288996,1.4192,4728.8,4728.7,3.29]
[1755173290889,1.4192,4728.8,4728.3,5.072]
[1755173291194,1.3136,4728.7,4728.3,5.072]
[1755173291393,0.1056,4728.8,4728.3,5.072]
[1755173291599,1.3136,4728.6,4728.4,3.294]
[1755173291799,1.45552,4728.5,4728.4,3.294]
[1755173292223,0.98072,4728.5,4728.4,3.294]
[1755173292420,0.14192,4728.5,4728.4,3.294]
[1755173292638,0.5804,4728.8,4728.4,3.294]
[1755173292926,0.4748,4728.7,4728.4,3.294]
[1755173293217,1.3136,4728.6,4728.4,3.294]
[1755173293417,1.3136,4728.5,4728.4,3.294]
[1755173293618,1.3136,4728.5,4728.4,3.293]
[1755173294404,1.45552,4728.5,4728.4,3.293]
[1755173295739,1.45552,4728.5,4726.9,0.001]
[1755173295740,0.55,4728.2,4726.9,0.001]
[1755173296046,31.16056595,4727.5,4726.9,0.001]
[1755173296341,32.47416595,4727.5,4727.4,3.308]
[1755173296542,35.1252932,4727.5,4727.4,0.001]
[1755173296749,35.1252932,4727.5,4727.4,3.308]
[1755173296954,35.1252932,4727.5,4727.4,0.001]
[1755173297115,37.24057611,4727.5,4727.4,3.308]
[1755173297309,35.1252932,4727.5,4727.4,3.307]
[1755173297836,37.24057611,4727.5,4727.4,0.001]
[1755173298038,37.24057611,4727.5,4727.4,3.307]
[1755173298237,5.66532766,4727.4,4726.9,0.001]
[1755173298436,7.76645491,4727.4,4727.3,3.307]
[1755173298638,9.08005491,4727.4,4727.3,3.307]
[1755173298971,9.08005491,4727.4,4726.9,0.001]
[1755173298972,5.66546191,4727.1,4726.9,0.001]
[1755173299319,7.08466191,4727.1,4726.9,0.001]
[1755173299651,9.18578916,4727.1,4726.9,0.001]
[1755173300234,23.68578916,4727.1,4726.9,0.001]
[1755173301371,5.66555141,4726.9,4726.8,0.001]
[1755173301571,6.96765141,4726.9,4726.8,0.001]
[1755173301800,0.55,4726.4,4726.0,5.071]
[1755173302062,0.55,4726.4,4722.1,2.11865974]
[1755173302063,3.55,4726.0,4725.7,3.304]
[1755173302219,4.0154,4726.0,4725.7,3.304]
[1755173302415,19.4577,4726.0,4725.7,3.304]
[1755173302621,21.57365429,4726.0,4724.4,0.1056]
[1755173302833,23.67478154,4726.0,4725.4,3.304]
[1755173303031,0.55,4725.5,4725.4,3.304]
[1755173303246,5.66617818,4725.5,4725.4,3.304]
[1755173303546,4.9577,4725.5,4725.4,3.304]
[1755173303922,3.1056,4725.5,4725.4,3.304]
[1755173305148,3.41616,4725.5,4725.4,3.304]
[1755173305743,3.88156,4725.5,4725.4,3.304]
[1755173306151,4.71826,4725.5,4725.4,3.304]
[1755173306761,3.55,4725.4,4724.4,0.001]
[1755173306932,0.55,4725.4,4724.5,3.303]
[1755173307131,0.1056,4724.8,4724.5,3.303]
[1755173307346,0.1056,4725.3,4724.6,0.1082]
[1755173307566,0.1056,4725.3,4724.7,3.304]
[1755173308639,19.60112725,4726.0,4724.7,3.304]
[1755173308843,5.10112725,4726.0,4724.7,3.304]
[1755173309056,2.10112725,4725.9,4724.7,3.304]
[1755173309457,0.1056,4725.7,4725.0,0.1056]
[1755173312248,0.1056,4725.7,4725.0,0.1064]
[1755173314469,0.1056,4726.2,4725.5,0.1056]
[1755173314770,0.1056,4726.2,4725.0,0.0008]
[1755173314771,4.3,4726.2,4725.6,3.4036]
[1755173315366,4.3,4726.2,4725.6,3.298]
[1755173315537,4.3,4726.2,4726.1,0.1056]
[1755173317782,0.1056,4726.7,4726.1,0.1056]
[1755173318273,4.3,4726.9,4726.4,0.1056]
[1755173318475,4.4056,4727.1,4726.5,3.297]
[1755173318648,3.0,4727.0,4726.5,3.297]
[1755173319047,4.3021,4727.0,4726.5,3.297]
[1755173319575,3.8367,4727.0,4726.5,3.297]
[1755173319776,0.4654,4726.9,4726.5,3.297]
[1755173320144,0.8367,4726.9,4726.5,3.297]
[1755173320556,3.0,4727.0,4726.5,3.297]
[1755173321353,4.4056,4727.1,4726.5,3.297]
[1755173321553,0.4654,4727.4,4726.5,3.297]
[1755173321554,0.571,4727.4,4726.5,3.297]
[1755173321744,0.1056,4727.4,4726.7,0.1056]
[1755173322755,4.3,4727.7,4726.7,0.1064]
[1755173322946,0.1056,4727.6,4727.0,0.1056]
[1755173324587,0.97637,4727.6,4727.0,0.1056]
[1755173325108,28.05496595,4728.2,4727.0,0.1056]
[1755173325109,0.4654,4728.3,4727.0,0.1056]
[1755173325304,0.4654,4728.3,4726.7,0.0034]
[1755173325604,0.002,4728.2,4727.5,0.1056]
[1755173325754,0.14097,4728.1,4727.6,3.291]
[1755173325949,1.3021,4728.0,4727.6,3.291]
[1755173326145,0.4654,4727.9,4727.6,3.291]
[1755173326596,0.002,4728.2,4727.6,3.291]
[1755173326805,0.002,4728.2,4727.8,0.1056]
[1755173327006,0.4674,4728.2,4727.8,0.1056]
[1755173327156,1.3041,4728.2,4727.8,0.1056]
[1755173328512,0.4654,4728.1,4727.8,0.1056]
[1755173329697,1.3021,4728.0,4727.8,0.1056]
[1755173329859,0.8367,4728.0,4727.8,0.1056]
[1755173330065,0.4654,4727.9,4727.8,0.1056]
[1755173330357,0.8367,4728.0,4727.8,0.1056]
[1755173330864,0.4674,4728.2,4727.8,0.1056]
[1755173331081,1.3021,4728.1,4727.8,0.1056]
[1755173331272,0.002,4728.2,4727.8,0.1056]
[1755173331273,0.4654,4728.0,4727.8,0.1056]
[1755173331473,0.451,4727.9,4727.8,0.1056]
[1755173331681,1.38227,4727.9,4727.8,3.287]
[1755173332278,1.2533,4727.9,4727.8,3.287]
[1755173333102,1.2533,4727.9,4727.8,3.2878]
[1755173333480,1.2533,4727.9,4727.8,0.0008]
[1755173333680,1.2533,4727.9,4727.8,3.2858]
[1755173335711,1.2533,4727.9,4727.8,0.0008]
[1755173335862,1.79499,4727.9,4727.8,3.2838]
[1755173336877,1.79499,4727.9,4727.8,3.2828]
[1755173338421,1.79499,4727.9,4727.8,0.0008]
[1755173338593,1.79499,4727.9,4727.8,3.2828]
[1755173341115,0.54169,4727.9,4727.8,3.2828]
[1755173341536,0.1056,4727.9,4727.8,3.2828]
[1755173342110,0.002,4728.2,4727.8,3.2828]
[1755173342323,0.1056,4728.1,4727.8,3.2828]
[1755173345321,0.0012,4728.2,4727.8,3.2828]
[1755173346299,0.8035,4728.2,4727.8,3.2828]
[1755173346502,0.451,4728.1,4727.8,3.2828]
[1755173346727,1.2533,4728.1,4727.8,3.2828]
[1755173346952,0.0012,4728.2,4727.8,3.2828]
[1755173347112,1.2533,4728.0,4727.8,3.2828]
[1755173347643,0.0012,4728.2,4727.8,3.2828]
[1755173347808,0.0012,4728.2,4727.8,3.3884]
[1755173348240,0.4522,4728.2,4727.8,3.3884]
[1755173348440,0.0012,4728.2,4727.8,3.3884]
[1755173352147,0.634054,4728.1,4727.8,3.3884]
[1755173352511,0.0012,4728.2,4727.8,3.3884]
[1755173352752,0.0012,4728.2,4728.0,0.1056]
[1755173353050,0.0012,4728.2,4728.0,0.0008]
[1755173353343,0.0012,4728.2,4728.1,0.1082]
[1755173353522,0.0012,4728.2,4728.1,0.1056]
[1755173357438,1.2545,4728.2,4728.1,0.1056]
[1755173357643,1.2545,4728.2,4728.1,3.3726]
[1755173358877,1.888555,4728.2,4728.1,0.1056]
[1755173359036,1.788555,4728.2,4728.1,3.3726]
[1755173359666,0.002,4728.7,4728.1,3.3726]
[1755173360177,0.634018,4728.5,4728.1,3.3726]
[1755173360374,0.8023,4728.4,4728.1,3.3726]
[1755173360674,0.8023,4728.3,4728.1,3.3726]
[1755173360874,0.634018,4728.5,4728.1,3.3726]
[1755173361074,0.8023,4728.2,4728.1,3.3726]
[1755173362991,1.925218,4728.5,4728.1,3.3726]
[1755173363276,1.2912,4728.3,4728.1,3.3734]
[1755173363968,1.2912,4728.2,4728.1,3.3734]
[1755173364372,1.2904,4728.2,4728.1,3.3734]
[1755173367802,1.2904,4728.2,4728.1,3.3674]
[1755173368850,1.924453,4728.2,4728.1,3.3674]
[1755173369508,1.924453,4728.2,4728.1,3.3684]
[1755173369711,1.926453,4728.2,4728.1,3.3684]
[1755173371512,1.926453,4728.2,4728.1,8.4374]
[1755173374517,1.2924,4728.2,4728.1,8.4374]
[1755173374976,0.002,4728.2,4728.1,8.4374]
[1755173380381,0.002,4728.2,4728.1,8.5396]
[1755173380783,0.002,4728.2,4728.1,8.4374]
[1755173381213,0.002,4728.2,4728.1,8.5396]
[1755173381729,0.002,4728.2,4728.1,8.4374]
[1755173381932,0.002,4728.2,4728.1,8.5396]
[1755173382225,0.002,4728.2,4728.1,13.65461448]
[1755173384294,0.002,4728.2,4728.1,14.20461448]
[1755173384833,0.002,4728.2,4728.1,11.20261448]
[1755173386431,0.0012,4728.2,4728.1,11.20261448]
[1755173386596,0.0012,4728.2,4728.1,14.20261448]
[1755173387118,0.0012,4728.2,4728.1,14.20161448]
[1755173389632,0.0012,4728.2,4728.1,10.84141448]
[1755173389817,0.0012,4728.2,4728.1,8.4344]
[1755173390706,0.0012,4728.2,4728.1,10.54941448]
[1755173392134,0.0012,4728.2,4728.1,10.55041448]
[1755173392647,0.0012,4728.2,4728.1,10.65261448]
[1755173393849,0.0012,4728.2,4728.1,7.39461448]
[1755173394148,0.0012,4728.2,4728.1,11.20261448]
[1755173394646,0.0012,4728.2,4728.1,11.10041448]
[1755173396653,0.0012,4728.2,4728.1,11.09941448]
[1755173397531,0.0012,4728.2,4728.1,11.09841448]
[1755173400725,1.2151,4728.2,4728.1,8.4334]
[1755173401716,1.2151,4728.2,4728.1,5.1764]
[1755173402005,1.2151,4728.2,4728.1,8.4334]
[1755173402654,1.2151,4728.2,4728.1,5.1764]
[1755173403090,1.2151,4728.2,4728.1,8.4334]
[1755173406718,1.2151,4728.2,4728.1,5.1764]
[1755173406925,1.2151,4728.2,4728.1,8.4334]
[1755173409394,1.2151,4728.2,4728.1,5.1764]
[1755173409594,1.970628,4728.2,4728.1,8.4334]
[1755173409892,1.970628,4728.2,4728.1,5.1764]
[1755173410530,1.970628,4728.2,4728.1,8.4334]
[1755173410717,1.970628,4728.2,4728.1,5.1764]
[1755173410921,1.970628,4728.2,4728.1,8.4334]
[1755173411089,1.970628,4728.2,4728.1,5.1764]
[1755173411295,1.970628,4728.2,4728.1,8.3278]
[1755173414043,2.076228,4728.2,4728.1,8.3278]
[1755173415859,2.076228,4728.2,4728.1,5.0708]
[1755173416138,2.076228,4728.2,4728.1,8.3278]
[1755173417265,2.076228,4728.2,4727.6,0.001]
[1755173417555,0.1056,4727.7,4727.6,0.001]
[1755173417765,1.3195,4727.7,4727.6,0.001]
[1755173418463,1.4251,4727.7,4727.6,3.258]
[1755173420430,1.3195,4727.7,4727.6,3.258]
[1755173422231,1.3195,4727.7,4727.6,3.2598]
[1755173422434,1.53392116,4727.7,4727.6,3.2598]
[1755173424745,1.53392116,4727.7,4727.6,0.0018]
[1755173424932,1.53392116,4727.7,4727.6,3.2588]
[1755173426641,1.63952116,4727.7,4727.6,3.2588]
[1755173427863,0.42562116,4727.7,4727.6,3.2588]
[1755173428834,1.64032116,4727.7,4727.6,3.2588]
[1755173429273,1.64032116,4727.7,4727.6,0.0018]
[1755173429449,1.64032116,4727.7,4727.6,3.2588]
[1755173430662,1.64032116,4727.7,4727.6,0.0018]
[1755173431039,1.64032116,4727.7,4727.6,3.257]
[1755173432536,1.53472116,4727.7,4727.6,3.257]
[1755173432739,1.3203,4727.7,4727.6,3.257]
[1755173433684,0.1056,4727.7,4727.6,3.257]
[1755173433863,1.3203,4727.7,4727.6,3.257]
[1755173434965,1.3203,4727.7,4727.6,3.258]
[1755173439472,1.3203,4727.7,4727.6,0.001]
[1755173439674,6.42142725,4727.7,4727.6,0.001]
[1755173439842,9.08662068,4727.7,4727.6,3.258]
[1755173440038,9.08662068,4727.7,4727.6,0.001]
[1755173440244,9.08662068,4727.7,4727.6,3.258]
[1755173440648,23.58662068,4727.7,4727.6,3.258]
[1755173441339,2.11531573,4727.5,4727.1,0.001]
[1755173441544,31.16056595,4727.2,4727.1,0.001]
[1755173441744,32.37526595,4727.2,4727.1,0.001]
[1755173441976,46.87526595,4727.2,4727.1,0.001]
[1755173442179,49.54068311,4727.2,4727.1,0.001]
[1755173442387,49.5263932,4727.2,4727.1,0.001]
[1755173442571,50.35844401,4727.2,4727.1,3.258]
[1755173443101,50.35844401,4727.2,4726.6,0.001]
[1755173443102,0.55,4727.0,4726.6,0.001]
[1755173443376,0.6556,4726.7,4726.6,0.001]
[1755173443545,1.8703,4726.7,4726.6,0.001]
[1755173443741,5.56887659,4726.7,4726.6,0.001]
[1755173444095,2.85093199,4726.7,4726.1,5.072]
[1755173444413,3.88039189,4726.6,4726.3,3.257]
[1755173444617,2.11586475,4726.2,4724.9,0.001]
[1755173444801,0.55,4726.0,4724.9,0.001]
[1755173445010,0.1056,4725.0,4724.9,0.001]
[1755173445683,1.954883,4725.0,4724.9,0.001]
[1755173445906,2.1503713,4725.0,4724.9,0.001]
[1755173446115,2.1503713,4725.0,4724.9,3.258]
[1755173446530,2.30754021,4725.0,4724.9,3.258]
[1755173448223,2.30754021,4725.0,4724.9,3.259]
[1755173448431,5.85754021,4725.0,4724.9,0.001]
[1755173448716,5.85754021,4725.0,4724.9,3.259]
[1755173448918,4.09284021,4725.0,4724.9,3.259]
[1755173449225,3.98724021,4725.0,4724.9,3.259]
[1755173449379,5.20194021,4725.0,4724.9,3.259]
[1755173449580,5.75194021,4725.0,4724.9,0.001]
[1755173452209,5.75194021,4725.0,4724.9,0.0018]
[1755173452617,20.25194021,4725.0,4724.9,0.0018]
[1755173453824,20.44854108,4725.0,4724.9,0.0018]
[1755173456306,20.44843343,4725.0,4724.9,0.0018]
[1755173457730,20.28244021,4725.0,4724.9,0.0018]
[1755173458159,22.59531917,4725.0,4724.9,0.0018]
[1755173458435,20.47891706,4725.0,4724.9,0.0018]
[1755173459144,20.58451706,4725.0,4724.9,0.0018]
[1755173461643,20.58451706,4725.0,4724.0,0.001]
[1755173461644,0.55,4724.8,4724.0,0.001]
[1755173461956,3.0,4724.9,4723.9,0.001]
[1755173461957,3.55,4724.2,4723.9,0.001]
[1755173462162,3.55,4724.0,4723.9,0.001]
[1755173462325,10.34962697,4724.0,4723.9,0.001]
[1755173462667,3.55,4723.5,4723.4,0.001]
[1755173462975,39.27151994,4723.5,4723.4,0.001]
[1755173463434,39.27151994,4723.5,4721.3,3.258]
[1755173463435,2.66725349,4723.1,4721.6,0.1056]
[1755173463765,4.8839,4723.1,4721.7,0.1022]